[Event "*** Titled Tuesday Blitz"]
[Site "Chess.com"]
[Date "2020.05.05"]
[Round "1"]
[White "HarutyunianTigranK"]
[Black "ZEN-22"]
[Result "1-0"]
[WhiteElo "2704"]
[BlackElo "2364"]
[TimeControl "180+1"]
[EndTime "10:06:30 PDT"]
[Termination "HarutyunianTigranK won by resignation"]

1. c4 {[%clk 0:02:59.7]} 1... d5 {[%clk 0:02:57.1]} 2. cxd5 {[%clk 0:02:59.5]}
2... c6 {[%clk 0:02:56.9]} 3. dxc6 {[%clk 0:02:59.4]} 3... Nxc6 {[%clk
0:02:56.7]} 4. Nc3 {[%clk 0:02:58.8]} 4... e5 {[%clk 0:02:56]} 5. d3 {[%clk
0:02:58.4]} 5... Bc5 {[%clk 0:02:55.2]} 6. Nf3 {[%clk 0:02:57.5]} 6... Nf6
{[%clk 0:02:53.8]} 7. e3 {[%clk 0:02:57.7]} 7... O-O {[%clk 0:02:52.2]} 8. Be2
{[%clk 0:02:58]} 8... a6 {[%clk 0:02:52.3]} 9. O-O {[%clk 0:02:58]} 9... Ba7
{[%clk 0:02:52]} 10. b3 {[%clk 0:02:56.9]} 10... Re8 {[%clk 0:02:49.9]} 11. Bb2
{[%clk 0:02:57.1]} 11... Bf5 {[%clk 0:02:46.5]} 12. Rc1 {[%clk 0:02:55.9]} 12...
Qd6 {[%clk 0:02:39.1]} 13. Nd2 {[%clk 0:02:46.3]} 13... Rad8 {[%clk 0:02:36.1]}
14. Nde4 {[%clk 0:02:42.7]} 14... Qe7 {[%clk 0:02:33.9]} 15. Nxf6+ {[%clk
0:02:36.4]} 15... Qxf6 {[%clk 0:02:32.3]} 16. a3 {[%clk 0:02:31]} 16... Qg6
{[%clk 0:02:28.3]} 17. e4 {[%clk 0:02:23.6]} 17... Bh3 {[%clk 0:02:05.9]} 18.
Bf3 {[%clk 0:02:23.6]} 18... Nd4 {[%clk 0:02:05.2]} 19. Kh1 {[%clk 0:02:23.8]}
19... Nxf3 {[%clk 0:02:04.3]} 20. Qxf3 {[%clk 0:02:24.4]} 20... Rxd3 {[%clk
0:02:04]} 21. Qxh3 {[%clk 0:02:10.9]} 21... Rxh3 {[%clk 0:02:03.1]} 22. gxh3
{[%clk 0:02:11.8]} 22... Qh5 {[%clk 0:02:00.9]} 23. Kg2 {[%clk 0:02:11]} 23...
Re6 {[%clk 0:01:58.3]} 24. Ne2 {[%clk 0:02:09.2]} 24... h6 {[%clk 0:01:53.8]}
25. Ng3 {[%clk 0:02:08.9]} 25... Qh4 {[%clk 0:01:52.4]} 26. Rc7 {[%clk
0:02:08.5]} 26... Rg6 {[%clk 0:01:51.5]} 27. f3 {[%clk 0:02:01.2]} 27... Qg5
{[%clk 0:01:36.2]} 28. Bc1 {[%clk 0:01:59.2]} 28... Be3 {[%clk 0:01:32.6]} 29.
h4 {[%clk 0:01:35.5]} 29... Qf4 {[%clk 0:01:31]} 30. h5 {[%clk 0:01:35.3]} 30...
Rd6 {[%clk 0:01:27.6]} 31. Nf5 {[%clk 0:01:25]} 31... Bxc1 {[%clk 0:01:18.7]}
32. Nxd6 {[%clk 0:01:24.8]} 32... Qg5+ {[%clk 0:01:11.9]} 33. Kh1 {[%clk
0:01:24.5]} 33... Bf4 {[%clk 0:01:11.5]} 34. Rc8+ {[%clk 0:01:24]} 34... Kh7
{[%clk 0:01:05.4]} 35. Rh8+ {[%clk 0:01:23.5]} 35... Kxh8 {[%clk 0:01:04.2]} 36.
Nxf7+ {[%clk 0:01:24.4]} 36... Kh7 {[%clk 0:01:04.3]} 37. Nxg5+ {[%clk
0:01:24.9]} 37... hxg5 {[%clk 0:01:05.2]} 38. Rd1 {[%clk 0:01:22.8]} 38... a5
{[%clk 0:00:59.4]} 39. Rd7 {[%clk 0:01:21.9]} 39... Bc1 {[%clk 0:00:59.6]} 40.
a4 {[%clk 0:01:21]} 40... b6 {[%clk 0:00:59.6]} 41. Rd6 {[%clk 0:01:20.2]} 41...
Be3 {[%clk 0:00:59]} 42. Rg6 {[%clk 0:01:19.7]} 42... Kg8 {[%clk 0:00:54]} 43.
h6 {[%clk 0:01:19.4]} 43... Kh7 {[%clk 0:00:54]} 44. hxg7 {[%clk 0:01:19]} 44...
Kg8 {[%clk 0:00:54.4]} 45. Kg2 {[%clk 0:01:18.5]} 1-0

[Event "*** Titled Tuesday Blitz"]
[Site "Chess.com"]
[Date "2020.05.05"]
[Round "1"]
[White "fridaywins"]
[Black "Joshukid"]
[Result "0-1"]
[WhiteElo "2236"]
[BlackElo "2568"]
[TimeControl "180+1"]
[EndTime "10:06:31 PDT"]
[Termination "Joshukid won by resignation"]

1. e4 {[%clk 0:03:00.9]} 1... g6 {[%clk 0:02:58.1]} 2. d4 {[%clk 0:02:52.3]}
2... Bg7 {[%clk 0:02:57.9]} 3. Nc3 {[%clk 0:02:53.2]} 3... d5 {[%clk 0:02:55.8]}
4. Nxd5 {[%clk 0:02:46.1]} 4... c6 {[%clk 0:02:54.8]} 5. Ne3 {[%clk 0:02:46.1]}
5... Qxd4 {[%clk 0:02:54.8]} 6. Qxd4 {[%clk 0:02:45.4]} 6... Bxd4 {[%clk
0:02:55.7]} 7. c3 {[%clk 0:02:46]} 7... Bb6 {[%clk 0:02:56]} 8. Bd3 {[%clk
0:02:46]} 8... e5 {[%clk 0:02:54]} 9. Ne2 {[%clk 0:02:44.8]} 9... Be6 {[%clk
0:02:43.9]} 10. Nc4 {[%clk 0:02:44.2]} 10... Bc7 {[%clk 0:02:43.6]} 11. Be3
{[%clk 0:02:41]} 11... Nd7 {[%clk 0:02:43.5]} 12. O-O-O {[%clk 0:02:39.8]} 12...
b5 {[%clk 0:02:39.3]} 13. Nd2 {[%clk 0:02:38.1]} 13... a5 {[%clk 0:02:15.5]} 14.
a3 {[%clk 0:02:29.8]} 14... f5 {[%clk 0:02:04.3]} 15. f3 {[%clk 0:02:29]} 15...
Ngf6 {[%clk 0:02:04.3]} 16. Bc2 {[%clk 0:02:19.5]} 16... c5 {[%clk 0:01:53.8]}
17. Rhe1 {[%clk 0:02:17.3]} 17... Kf7 {[%clk 0:01:51.6]} 18. exf5 {[%clk
0:02:16.8]} 18... gxf5 {[%clk 0:01:51.7]} 19. f4 {[%clk 0:02:17.7]} 19... e4
{[%clk 0:01:51.3]} 20. h3 {[%clk 0:02:11.7]} 20... h5 {[%clk 0:01:43.7]} 21. Nf1
{[%clk 0:02:08.8]} 21... Rhc8 {[%clk 0:01:33.9]} 22. g3 {[%clk 0:02:08.8]} 22...
b4 {[%clk 0:01:33.7]} 23. a4 {[%clk 0:02:04.5]} 23... b3 {[%clk 0:01:32]} 24.
Bb1 {[%clk 0:02:03.6]} 24... Bd8 {[%clk 0:01:15.9]} 25. Bf2 {[%clk 0:02:03.6]}
25... Be7 {[%clk 0:01:14.3]} 26. Ne3 {[%clk 0:02:03.5]} 26... Nb6 {[%clk
0:01:14.8]} 27. g4 {[%clk 0:02:02.9]} 27... hxg4 {[%clk 0:01:14.3]} 28. hxg4
{[%clk 0:02:02.8]} 28... fxg4 {[%clk 0:01:13]} 29. f5 {[%clk 0:02:02.7]} 29...
Bd7 {[%clk 0:01:13.1]} 30. Ng3 {[%clk 0:02:01.9]} 30... Bc6 {[%clk 0:01:09.2]}
31. Ng2 {[%clk 0:01:53.7]} 31... Nxa4 {[%clk 0:01:08.5]} 32. Nxe4 {[%clk
0:01:53.3]} 32... Rd8 {[%clk 0:00:44.1]} 33. Nf4 {[%clk 0:01:43.5]} 33... Rxd1+
{[%clk 0:00:36.2]} 34. Kxd1 {[%clk 0:01:41.8]} 34... Nxb2+ {[%clk 0:00:35.9]}
35. Kc1 {[%clk 0:01:42]} 35... Nxe4 {[%clk 0:00:34.4]} 36. Bxe4 {[%clk
0:01:40.6]} 36... Bxe4 {[%clk 0:00:24]} 37. Kxb2 {[%clk 0:01:40.6]} 37... a4
{[%clk 0:00:24.7]} 38. Rxe4 {[%clk 0:01:39.3]} 38... a3+ {[%clk 0:00:25.2]} 39.
Kxb3 {[%clk 0:01:39.2]} 39... a2 {[%clk 0:00:25.2]} 40. Re1 {[%clk 0:01:40.1]}
40... a1=Q {[%clk 0:00:25.7]} 41. Rxa1 {[%clk 0:01:39.2]} 41... Rxa1 {[%clk
0:00:26.6]} 42. Kc4 {[%clk 0:01:37.8]} 42... Ra4+ {[%clk 0:00:25.6]} 43. Kd5
{[%clk 0:01:36.6]} 43... Rxf4 {[%clk 0:00:26.5]} 44. Be3 {[%clk 0:01:37.1]}
44... Rxf5+ {[%clk 0:00:27]} 45. Ke4 {[%clk 0:01:37.4]} 45... Ke6 {[%clk
0:00:26.7]} 46. c4 {[%clk 0:01:36.8]} 46... Re5+ {[%clk 0:00:26.2]} 47. Kf4
{[%clk 0:01:36.5]} 47... Bg5+ {[%clk 0:00:26.3]} 48. Kxg4 {[%clk 0:01:36.8]}
48... Bxe3 {[%clk 0:00:27.2]} 49. Kf3 {[%clk 0:01:36.9]} 49... Kf5 {[%clk
0:00:27.1]} 50. Ke2 {[%clk 0:01:37.8]} 50... Re4 {[%clk 0:00:27.3]} 51. Kd3
{[%clk 0:01:38.7]} 51... Kf4 {[%clk 0:00:27.5]} 52. Kc3 {[%clk 0:01:38.8]} 52...
Bf2 {[%clk 0:00:27.7]} 53. Kd3 {[%clk 0:01:39.7]} 53... Be1 {[%clk 0:00:27.6]}
54. Kc2 {[%clk 0:01:38.4]} 54... Rxc4+ {[%clk 0:00:28.5]} 55. Kd3 {[%clk
0:01:39.3]} 55... Rd4+ {[%clk 0:00:28.9]} 56. Ke2 {[%clk 0:01:39.7]} 56... c4
{[%clk 0:00:28.7]} 0-1

[Event "*** Titled Tuesday Blitz"]
[Site "Chess.com"]
[Date "2020.05.05"]
[Round "1"]
[White "DaggiGretarsson"]
[Black "madalin18"]
[Result "1-0"]
[WhiteElo "2523"]
[BlackElo "2155"]
[TimeControl "180+1"]
[EndTime "10:06:31 PDT"]
[Termination "DaggiGretarsson won by resignation"]

1. d4 {[%clk 0:03:00.9]} 1... Nf6 {[%clk 0:02:59.7]} 2. c4 {[%clk 0:03:00.1]}
2... g6 {[%clk 0:03:00.2]} 3. Nc3 {[%clk 0:02:59.6]} 3... Bg7 {[%clk 0:03:00.7]}
4. e4 {[%clk 0:02:58.3]} 4... d6 {[%clk 0:03:01.2]} 5. f4 {[%clk 0:02:57.9]}
5... O-O {[%clk 0:03:01.2]} 6. Nf3 {[%clk 0:02:57.8]} 6... c5 {[%clk 0:03:01]}
7. dxc5 {[%clk 0:02:57.5]} 7... dxc5 {[%clk 0:03:00.2]} 8. Bd3 {[%clk
0:02:56.9]} 8... Nc6 {[%clk 0:02:58.3]} 9. e5 {[%clk 0:02:56.7]} 9... Nh5 {[%clk
0:02:47.5]} 10. O-O {[%clk 0:02:38.5]} 10... Nd4 {[%clk 0:02:39.9]} 11. Be4
{[%clk 0:02:26.3]} 11... Bg4 {[%clk 0:02:17.7]} 12. Bxb7 {[%clk 0:02:17]} 12...
Rb8 {[%clk 0:02:11.9]} 13. Be4 {[%clk 0:02:02.3]} 13... Bh6 {[%clk 0:01:36.6]}
14. h3 {[%clk 0:01:25.3]} 14... Bxf3 {[%clk 0:01:32.5]} 15. Bxf3 {[%clk
0:01:24.7]} 15... Nxf4 {[%clk 0:01:10]} 16. Be4 {[%clk 0:01:15.5]} 16... g5
{[%clk 0:01:05.3]} 17. Bxf4 {[%clk 0:01:09.9]} 17... gxf4 {[%clk 0:01:05.2]} 18.
Qh5 {[%clk 0:01:09.5]} 18... f5 {[%clk 0:00:34.1]} 19. Qxh6 {[%clk 0:00:35.9]}
19... fxe4 {[%clk 0:00:33.8]} 20. Rxf4 {[%clk 0:00:35.2]} 20... Rxf4 {[%clk
0:00:33.1]} 21. Qxf4 {[%clk 0:00:34.5]} 21... Rxb2 {[%clk 0:00:31.9]} 22. Qxe4
{[%clk 0:00:25.6]} 22... e6 {[%clk 0:00:30.5]} 23. Rf1 {[%clk 0:00:22.4]} 23...
Qg5 {[%clk 0:00:29.8]} 24. Qa8+ {[%clk 0:00:20.8]} 24... Kg7 {[%clk 0:00:26]}
25. Qf8+ {[%clk 0:00:20.5]} 25... Kg6 {[%clk 0:00:26]} 26. Qf7+ {[%clk
0:00:19.7]} 26... Kh6 {[%clk 0:00:25.7]} 27. Rf6+ {[%clk 0:00:19.6]} 1-0

[Event "*** Titled Tuesday Blitz"]
[Site "Chess.com"]
[Date "2020.05.05"]
[Round "1"]
[White "IriBu"]
[Black "Andreikka"]
[Result "0-1"]
[WhiteElo "2465"]
[BlackElo "2961"]
[TimeControl "180+1"]
[EndTime "10:06:34 PDT"]
[Termination "Andreikka won by resignation"]

1. e4 {[%clk 0:03:00.9]} 1... e5 {[%clk 0:02:58.6]} 2. Nf3 {[%clk 0:03:00.7]}
2... Nc6 {[%clk 0:02:58.9]} 3. d4 {[%clk 0:03:00.9]} 3... exd4 {[%clk
0:02:57.2]} 4. c3 {[%clk 0:03:01.1]} 4... Nf6 {[%clk 0:02:58.1]} 5. e5 {[%clk
0:02:59.8]} 5... Ne4 {[%clk 0:02:51.6]} 6. Qe2 {[%clk 0:02:58.9]} 6... f5 {[%clk
0:01:56.1]} 7. exf6 {[%clk 0:02:58.3]} 7... d5 {[%clk 0:01:56]} 8. Nbd2 {[%clk
0:02:51.5]} 8... d3 {[%clk 0:01:49.7]} 9. f7+ {[%clk 0:02:41.9]} 9... Kxf7
{[%clk 0:01:47.4]} 10. Qxd3 {[%clk 0:02:41.2]} 10... Nc5 {[%clk 0:01:47.2]} 11.
Qe3 {[%clk 0:02:31]} 11... Bd6 {[%clk 0:01:40]} 12. Ng5+ {[%clk 0:02:20.6]}
12... Kg6 {[%clk 0:01:40]} 13. Bd3+ {[%clk 0:01:22.2]} 13... Nxd3+ {[%clk
0:01:35]} 14. Qxd3+ {[%clk 0:01:23.1]} 14... Bf5 {[%clk 0:01:32.1]} 15. Qxd5
{[%clk 0:01:20.3]} 15... Qxg5 {[%clk 0:00:59.6]} 16. Nf3 {[%clk 0:01:14.1]}
16... Rhe8+ {[%clk 0:00:55.5]} 17. Be3 {[%clk 0:01:10.1]} 17... Rxe3+ {[%clk
0:00:36.5]} 18. fxe3 {[%clk 0:01:07.4]} 18... Qxe3+ {[%clk 0:00:36.8]} 19. Kd1
{[%clk 0:01:07.1]} 19... Be4 {[%clk 0:00:29.9]} 20. Nh4+ {[%clk 0:00:59.7]}
20... Kh6 {[%clk 0:00:29.7]} 21. Qf7 {[%clk 0:00:40.6]} 21... Rf8 {[%clk
0:00:22.9]} 22. Qe6+ {[%clk 0:00:35.4]} 22... Rf6 {[%clk 0:00:23.2]} 23. Qg4
{[%clk 0:00:29.6]} 23... Rf2 {[%clk 0:00:20.4]} 24. Nf3 {[%clk 0:00:17.8]} 24...
Bxf3+ {[%clk 0:00:19.3]} 0-1

[Event "*** Titled Tuesday Blitz"]
[Site "Chess.com"]
[Date "2020.05.05"]
[Round "1"]
[White "MikeKorovin"]
[Black "Barbus89"]
[Result "1-0"]
[WhiteElo "2664"]
[BlackElo "2336"]
[TimeControl "180+1"]
[EndTime "10:06:34 PDT"]
[Termination "MikeKorovin won by checkmate"]

1. Nf3 {[%clk 0:03:00.1]} 1... Nf6 {[%clk 0:02:58.3]} 2. Nc3 {[%clk 0:02:57.4]}
2... d5 {[%clk 0:02:57.4]} 3. d3 {[%clk 0:02:55.4]} 3... g6 {[%clk 0:02:55.9]}
4. Bg5 {[%clk 0:02:55.6]} 4... Bg7 {[%clk 0:02:56.2]} 5. e4 {[%clk 0:02:56.2]}
5... O-O {[%clk 0:02:54.2]} 6. Be2 {[%clk 0:02:37]} 6... c6 {[%clk 0:02:45.7]}
7. e5 {[%clk 0:02:34.5]} 7... Nfd7 {[%clk 0:02:43.1]} 8. d4 {[%clk 0:02:26]}
8... f6 {[%clk 0:02:43.1]} 9. exf6 {[%clk 0:02:24.8]} 9... exf6 {[%clk 0:02:44]}
10. Bf4 {[%clk 0:02:24.6]} 10... Re8 {[%clk 0:02:42.7]} 11. O-O {[%clk
0:02:24.5]} 11... Nf8 {[%clk 0:02:42.4]} 12. Qd2 {[%clk 0:02:24.2]} 12... Nbd7
{[%clk 0:02:34.4]} 13. Rae1 {[%clk 0:02:22.3]} 13... Ne6 {[%clk 0:02:33.9]} 14.
Bg3 {[%clk 0:02:20.6]} 14... Qa5 {[%clk 0:02:22.1]} 15. a3 {[%clk 0:02:16.5]}
15... b5 {[%clk 0:02:05.1]} 16. Bd3 {[%clk 0:02:11.5]} 16... Nb6 {[%clk
0:02:02.5]} 17. h4 {[%clk 0:02:07.3]} 17... Nc4 {[%clk 0:01:38]} 18. Qc1 {[%clk
0:02:02.4]} 18... Nxa3 {[%clk 0:01:22.4]} 19. h5 {[%clk 0:02:01.8]} 19... gxh5
{[%clk 0:01:18.6]} 20. Ne2 {[%clk 0:01:06.4]} 20... Nc4 {[%clk 0:01:14.7]} 21.
b3 {[%clk 0:01:04.1]} 21... Nb6 {[%clk 0:00:53.2]} 22. Nf4 {[%clk 0:01:03.5]}
22... Nxf4 {[%clk 0:00:32.5]} 23. Rxe8+ {[%clk 0:01:02]} 23... Kf7 {[%clk
0:00:33]} 24. Rfe1 {[%clk 0:00:30.2]} 24... Nxd3 {[%clk 0:00:30.6]} 25. cxd3
{[%clk 0:00:29.9]} 25... Bg4 {[%clk 0:00:17.8]} 26. R1e7+ {[%clk 0:00:28.7]}
26... Kg6 {[%clk 0:00:15.9]} 27. Nh4# {[%clk 0:00:29.2]} 1-0

[Event "*** Titled Tuesday Blitz"]
[Site "Chess.com"]
[Date "2020.05.05"]
[Round "1"]
[White "mshuaau0"]
[Black "dukicz123"]
[Result "1-0"]
[WhiteElo "2118"]
[BlackElo "2487"]
[TimeControl "180+1"]
[EndTime "10:06:34 PDT"]
[Termination "mshuaau0 won by checkmate"]

1. e4 {[%clk 0:03:00.9]} 1... e5 {[%clk 0:02:58.9]} 2. Nf3 {[%clk 0:03:01]} 2...
Nc6 {[%clk 0:02:58.8]} 3. Bc4 {[%clk 0:03:01.1]} 3... Bc5 {[%clk 0:02:58.4]} 4.
d3 {[%clk 0:03:00.8]} 4... Nf6 {[%clk 0:02:58.5]} 5. Nc3 {[%clk 0:02:59.5]} 5...
d6 {[%clk 0:02:57.5]} 6. a3 {[%clk 0:02:57]} 6... a6 {[%clk 0:02:55.9]} 7. h3
{[%clk 0:02:54.6]} 7... h6 {[%clk 0:02:54]} 8. Nd5 {[%clk 0:02:54]} 8... Nxd5
{[%clk 0:02:52.7]} 9. Bxd5 {[%clk 0:02:54]} 9... Ne7 {[%clk 0:02:51.9]} 10. Ba2
{[%clk 0:02:50.9]} 10... Ng6 {[%clk 0:02:51.9]} 11. Be3 {[%clk 0:02:49.1]} 11...
O-O {[%clk 0:02:42.4]} 12. Bxc5 {[%clk 0:02:46.4]} 12... dxc5 {[%clk 0:02:43.3]}
13. Qd2 {[%clk 0:02:33.8]} 13... Qf6 {[%clk 0:02:25.3]} 14. O-O-O {[%clk
0:02:27.1]} 14... Nf4 {[%clk 0:02:21.3]} 15. Rhg1 {[%clk 0:01:53.5]} 15... Kh7
{[%clk 0:02:10.4]} 16. Nh2 {[%clk 0:01:48.7]} 16... Qd6 {[%clk 0:01:32.6]} 17.
h4 {[%clk 0:01:36.6]} 17... b5 {[%clk 0:01:32.4]} 18. g3 {[%clk 0:01:36.2]}
18... Ne6 {[%clk 0:01:31.4]} 19. Ng4 {[%clk 0:01:12.7]} 19... Nd4 {[%clk
0:01:25.8]} 20. Ne3 {[%clk 0:01:11.8]} 20... Nf3 {[%clk 0:01:26]} 21. Qe2 {[%clk
0:01:11.8]} 21... Nxg1 {[%clk 0:01:26.1]} 22. Rxg1 {[%clk 0:01:12.3]} 22... Be6
{[%clk 0:01:26.2]} 23. Kb1 {[%clk 0:00:57.2]} 23... Bxa2+ {[%clk 0:01:23.9]} 24.
Kxa2 {[%clk 0:00:57.3]} 24... Qe6+ {[%clk 0:01:24]} 25. Kb1 {[%clk 0:00:57.3]}
25... c6 {[%clk 0:01:22.9]} 26. g4 {[%clk 0:00:57]} 26... a5 {[%clk 0:01:14.7]}
27. g5 {[%clk 0:00:56.3]} 27... a4 {[%clk 0:01:11.6]} 28. gxh6 {[%clk
0:00:52.6]} 28... g6 {[%clk 0:01:01.8]} 29. h5 {[%clk 0:00:48.5]} 29... b4
{[%clk 0:01:02]} 30. Nc4 {[%clk 0:00:44.2]} 30... bxa3 {[%clk 0:01:02.3]} 31.
Nxa3 {[%clk 0:00:44.3]} 31... Rab8 {[%clk 0:00:34.7]} 32. Qd2 {[%clk 0:00:44.2]}
32... Rb4 {[%clk 0:00:32.5]} 33. Qc3 {[%clk 0:00:42.1]} 33... Rfb8 {[%clk
0:00:31.9]} 34. Nc4 {[%clk 0:00:41]} 34... a3 {[%clk 0:00:31.2]} 35. b3 {[%clk
0:00:39.6]} 35... a2+ {[%clk 0:00:30.7]} 36. Ka1 {[%clk 0:00:39.8]} 36... Re8
{[%clk 0:00:26.1]} 37. f4 {[%clk 0:00:39.3]} 37... exf4 {[%clk 0:00:25.3]} 38.
Qg7# {[%clk 0:00:38.6]} 1-0

[Event "*** Titled Tuesday Blitz"]
[Site "Chess.com"]
[Date "2020.05.05"]
[Round "1"]
[White "youngKID"]
[Black "elisak43"]
[Result "0-1"]
[WhiteElo "2785"]
[BlackElo "2431"]
[TimeControl "180+1"]
[EndTime "10:06:35 PDT"]
[Termination "elisak43 won by resignation"]

1. e4 {[%clk 0:03:00.9]} 1... e5 {[%clk 0:02:58.5]} 2. Nf3 {[%clk 0:03:01.1]}
2... Nc6 {[%clk 0:02:57.9]} 3. Bb5 {[%clk 0:03:01.1]} 3... a6 {[%clk 0:02:57.3]}
4. Ba4 {[%clk 0:03:01.4]} 4... Nf6 {[%clk 0:02:55.8]} 5. d3 {[%clk 0:03:01.8]}
5... d6 {[%clk 0:02:52.7]} 6. c3 {[%clk 0:02:58.2]} 6... g6 {[%clk 0:02:52.4]}
7. O-O {[%clk 0:02:57.3]} 7... Bg7 {[%clk 0:02:51.5]} 8. Re1 {[%clk 0:02:57.5]}
8... O-O {[%clk 0:02:51.8]} 9. Nbd2 {[%clk 0:02:57.9]} 9... Nh5 {[%clk
0:02:40.3]} 10. Nf1 {[%clk 0:02:52.3]} 10... f5 {[%clk 0:02:34.9]} 11. exf5
{[%clk 0:02:52.3]} 11... Bxf5 {[%clk 0:02:31.9]} 12. Qb3+ {[%clk 0:02:01.8]}
12... Kh8 {[%clk 0:02:30.1]} 13. Qxb7 {[%clk 0:02:02.4]} 13... Ne7 {[%clk
0:02:27.9]} 14. d4 {[%clk 0:01:46.6]} 14... e4 {[%clk 0:01:41.9]} 15. N3d2
{[%clk 0:01:15.8]} 15... d5 {[%clk 0:01:36.1]} 16. Nb3 {[%clk 0:01:13.5]} 16...
Ng8 {[%clk 0:01:27.6]} 17. Ne3 {[%clk 0:01:11.2]} 17... Qh4 {[%clk 0:01:21.7]}
18. Nxf5 {[%clk 0:00:55.8]} 18... Rxf5 {[%clk 0:01:17.2]} 19. g3 {[%clk
0:00:55.6]} 19... Qh3 {[%clk 0:00:59.5]} 20. Bd7 {[%clk 0:00:55.3]} 20... Raf8
{[%clk 0:00:56.5]} 21. Qxd5 {[%clk 0:00:48.3]} 21... Ngf6 {[%clk 0:00:35]} 22.
Bxf5 {[%clk 0:00:41.8]} 22... gxf5 {[%clk 0:00:35.3]} 23. Qc5 {[%clk 0:00:14.6]}
23... Ng4 {[%clk 0:00:33]} 24. Be3 {[%clk 0:00:14.2]} 24... f4 {[%clk
0:00:21.8]} 0-1

[Event "*** Titled Tuesday Blitz"]
[Site "Chess.com"]
[Date "2020.05.05"]
[Round "1"]
[White "Alopekos"]
[Black "Anuar_Is"]
[Result "1-0"]
[WhiteElo "2422"]
[BlackElo "2772"]
[TimeControl "180+1"]
[EndTime "10:06:35 PDT"]
[Termination "Alopekos won by resignation"]

1. e4 {[%clk 0:02:58]} 1... c5 {[%clk 0:02:59.6]} 2. Nc3 {[%clk 0:02:56]} 2...
Nc6 {[%clk 0:02:58.9]} 3. Nge2 {[%clk 0:02:53.5]} 3... Nf6 {[%clk 0:02:57]} 4.
d4 {[%clk 0:02:52]} 4... cxd4 {[%clk 0:02:57.9]} 5. Nxd4 {[%clk 0:02:52.5]} 5...
e5 {[%clk 0:02:58.2]} 6. Ndb5 {[%clk 0:02:53.1]} 6... d6 {[%clk 0:02:58.4]} 7.
Nd5 {[%clk 0:02:53.7]} 7... Nxd5 {[%clk 0:02:57.9]} 8. exd5 {[%clk 0:02:54.6]}
8... Ne7 {[%clk 0:02:58.4]} 9. a4 {[%clk 0:02:53.6]} 9... Ng6 {[%clk 0:02:52.1]}
10. Be2 {[%clk 0:02:47.4]} 10... Be7 {[%clk 0:02:51.5]} 11. O-O {[%clk 0:02:45]}
11... O-O {[%clk 0:02:51.1]} 12. Kh1 {[%clk 0:02:19.8]} 12... f5 {[%clk
0:02:50.9]} 13. f3 {[%clk 0:01:19.4]} 13... Bd7 {[%clk 0:02:28.1]} 14. Be3
{[%clk 0:01:15]} 14... a6 {[%clk 0:02:11.6]} 15. Na3 {[%clk 0:01:14.4]} 15...
Rb8 {[%clk 0:02:10.6]} 16. Nc4 {[%clk 0:00:59.6]} 16... b5 {[%clk 0:02:05.6]}
17. axb5 {[%clk 0:01:00.5]} 17... axb5 {[%clk 0:02:06.2]} 18. Na5 {[%clk
0:01:00.4]} 18... Qc7 {[%clk 0:02:03.2]} 19. b4 {[%clk 0:00:24.8]} 19... Rbc8
{[%clk 0:01:48.1]} 20. c4 {[%clk 0:00:22.6]} 20... bxc4 {[%clk 0:01:46.4]} 21.
Bxc4 {[%clk 0:00:21.4]} 21... Kh8 {[%clk 0:01:41.1]} 22. b5 {[%clk 0:00:21.5]}
22... Rb8 {[%clk 0:01:38.7]} 23. Nc6 {[%clk 0:00:15.3]} 23... Bf6 {[%clk
0:01:34]} 24. Ra7 {[%clk 0:00:12]} 24... Qc8 {[%clk 0:01:34]} 25. Nxb8 {[%clk
0:00:08.6]} 25... Qxb8 {[%clk 0:01:32.2]} 26. Rxd7 {[%clk 0:00:08.6]} 26... Qc8
{[%clk 0:01:32.7]} 27. Ra7 {[%clk 0:00:05.1]} 27... Qxc4 {[%clk 0:01:33]} 28. b6
{[%clk 0:00:05.3]} 28... f4 {[%clk 0:01:31.7]} 29. Bg1 {[%clk 0:00:05]} 29... e4
{[%clk 0:01:29.5]} 30. Qc1 {[%clk 0:00:04.6]} 30... Qb5 {[%clk 0:01:28.7]} 31.
Qb1 {[%clk 0:00:04.7]} 31... Qe2 {[%clk 0:01:24.1]} 32. Re1 {[%clk 0:00:04.1]}
32... Qd2 {[%clk 0:01:23.9]} 33. Qd1 {[%clk 0:00:03.9]} 33... Qb2 {[%clk
0:01:23.5]} 34. Rxe4 {[%clk 0:00:03.6]} 34... Nh4 {[%clk 0:01:23.4]} 35. Re2
{[%clk 0:00:03.8]} 35... Qb5 {[%clk 0:01:22.7]} 36. b7 {[%clk 0:00:03.8]} 36...
h5 {[%clk 0:01:19.4]} 37. Qe1 {[%clk 0:00:03.1]} 37... Rd8 {[%clk 0:01:15.5]}
38. Ra8 {[%clk 0:00:03.3]} 38... Qxb7 {[%clk 0:01:14.8]} 39. Rxd8+ {[%clk
0:00:03.2]} 39... Bxd8 {[%clk 0:01:15.7]} 40. Re8+ {[%clk 0:00:03.4]} 40... Kh7
{[%clk 0:01:16.6]} 41. Rxd8 {[%clk 0:00:03.7]} 41... Qb2 {[%clk 0:01:17]} 42.
Qxh4 {[%clk 0:00:03.4]} 1-0